[Event "Tata Steel India Women Rapid 2024"]
[Site "Kolkata"]
[Date "2024.11.13"]
[Round "1.5"]
[White "Vantika Agrawal"]
[Black "Gunina, Valentina"]
[Result "1-0"]
[ECO "D12"]
[WhiteElo "2392"]
[BlackElo "2425"]
[Annotator "RC"]
[PlyCount "99"]
[EventDate "2024.11.06"]
[EventType "tourn"]
[EventCountry "IND"]
[SourceTitle "playchess.com"]
[Source "ChessBase"]
[SourceQuality "1"]
[TimeControl "1500+10"]

1. d4 {[%emt 0:00:17]} d5 {[%emt 0:00:01]} 2. c4 {[%emt 0:00:06]} c6 {[%emt 0:00:02]} 3. Nf3 {[%emt 0:00:05]} Nf6 {[%emt 0:00:02]} 4. e3 {[%emt 0:00:09]} Bf5 {[%emt 0:00:02]} 5. Nc3 {[%emt 0:00:16]} e6 {[%emt 0:00:03]} 6. Nh4 {[%emt 0:00:22]} Bg6 {[%emt 0:00:02]} 7. Nxg6 hxg6 {[%emt 0:00:03]} 8. Qb3 {[%emt 0:01:19]} Qc7 {[%emt 0:00:37]} 9. Bd2 {[%emt 0:01:12]} Nbd7 {[%emt 0:00:04]} 10. cxd5 {[%emt 0:00:46]} exd5 {[%emt 0:00:02]} 11. Be2 {[%emt 0:01:46]} Be7 {[%emt 0:00:08]} 12. h4 {[%emt 0:01:03]} g5 {[%emt 0:01:29]} 13. h5 {[%emt 0:01:04]} g4 {[%emt 0:00:39]} 14. O-O-O {[%emt 0:01:06]} a5 {[%emt 0:00:05]} 15. Kb1 {[%emt 0:00:46]} a4 {[%emt 0:01:22]} 16. Qc2 {[%emt 0:01:30]} a3 {[%emt 0:00:01]} 17. b3 {[%emt 0:00:31]} Nf8 {[%emt 0:00:03]} 18. e4 {[%emt 0:03:29]} Ne6 {[%emt 0:02:48]} 19. Be3 {[%emt 0:00:59]} dxe4 {[%emt 0:10:44]} 20. Nxe4 {[%emt 0:00:35]} Nxe4 {[%emt 0:00:20]} 21. Qxe4 {[%emt 0:00:07]} g3 {[%emt 0:00:01]} 22. Bc4 {[%emt 0:02:33]} gxf2 {[%emt 0:00:51]} 23. Bxe6 {[%emt 0:02:13]} fxe6 {[%emt 0:00:02]} 24. Qxe6 {[%emt 0:00:44]} Rf8 {[%emt 0:00:43]} 25. Qg6+ {[%emt 0:00:51]} Rf7 {[%emt 0:01:32]} 26. Rhf1 {[%emt 0:01:20]} Qd6 {[%emt 0:01:12]} 27. Qg4 {[%emt 0:02:14]} Qd7 {[%emt 0:00:41]} 28. Qxd7+ {[%emt 0:01:08]} Kxd7 {[%emt 0:00:01]} 29. Rxf2 {[%emt 0:00:01]} Rxf2 {[%emt 0:00:03]} 30. Bxf2 {[%emt 0:00:02]} Rf8 {[%emt 0:00:13]} 31. Be3 {[%emt 0:00:36]} Rf5 {[%emt 0:00:39]} 32. Rh1 {[%emt 0:00:20]} Bg5 {[%emt 0:00:18]} 33. g4 {[%emt 0:00:28]} Rd5 {[%emt 0:00:01]} 34. Bxg5 {[%emt 0:00:29]} Rxg5 {[%emt 0:00:02]} 35. Rg1 {[%emt 0:00:05]} Rd5 {[%emt 0:00:49]} 36. g5 {[%emt 0:00:25]} Ke7 {[%emt 0:00:14]} 37. h6 gxh6 {[%emt 0:00:57]} 38. gxh6 {[%emt 0:00:12]} Rxd4 {[%emt 0:03:31]} 39. Rh1 {[%emt 0:00:16]} Rd8 {[%emt 0:00:02]} 40. b4 {[%emt 0:00:12]} Kf6 {[%emt 0:00:20]} 41. h7 {[%emt 0:00:10]} Kg7 {[%emt 0:00:12]} 42. Kc2 {[%emt 0:00:09]} Kh8 {[%emt 0:00:06]} 43. Rh3 {[%emt 0:00:10]} Rd4 {[%emt 0:00:02]} 44. Kb3 {[%emt 0:00:08]} Rd7 {[%emt 0:01:06]} 45. Kxa3 Rxh7 {[%emt 0:00:02]} 46. Rxh7+ {[%emt 0:00:19]} Kxh7 {[%emt 0:00:00]} 47. Ka4 {[%emt 0:00:13]} b6 {[%emt 0:00:01]} 48. Kb3 {[%emt 0:00:10]} Kg7 {[%emt 0:00:01]} 49. a4 {[%emt 0:00:09]} Kf7 {[%emt 0:00:07]} 50. a5 {[%emt 0:00:05]} 1-0

[Event "Tata Steel India Women Rapid 2024"]
[Site "Kolkata"]
[Date "2024.11.13"]
[Round "2.1"]
[White "Kosteniuk, Alexandra"]
[Black "Vantika Agrawal"]
[Result "1/2-1/2"]
[ECO "C01"]
[WhiteElo "2487"]
[BlackElo "2392"]
[Annotator "TA"]
[PlyCount "108"]
[EventDate "2024.11.06"]
[EventType "tourn"]
[EventCountry "IND"]
[SourceTitle "playchess.com"]
[Source "ChessBase"]
[SourceQuality "1"]
[TimeControl "1500+10"]

{[%evp 13,108,26,18,17,19,15,14,6,12,13,15,-15,-9,-62,-64,-58,-53,-50,-22,-18,-28,-69,0,0,35,-17,-13,-40,0,-25,39,-2,0,0,175,60,171,0,0,0,0,0,0,0,0,11,0,-227,-250,-246,-242,-252,-257,-291,-212,-350,-347,-344,-204,-204,-191,-184,-101,-200,-52,-56,-10,-14,-8,-129,-129,-229,-220,-247,-122,-263,0,-263,0,-252,-8,-8,-8,-8,0,-8,-8,-8,0,0,0,0,0,0,0,0,0]} 1. e4 {[%emt 0:00:01]} e6 {[%emt 0:00:16]} 2. d4 {[%emt 0:00:03]} d5 {[%emt 0:00:02]} 3. exd5 {[%emt 0:00:03]} exd5 {[%emt 0:00:03]} 4. Nf3 {[%emt 0:00:25]} Bd6 {[%emt 0:00:17]} 5. c4 {[%emt 0:00:05]} c6 {[%emt 0:00:13]} 6. Nc3 {[%emt 0:00:27]} Ne7 {[%emt 0:00:13]} 7. c5 {[%emt 0:00:18]} Bc7 {[%emt 0:00:08]} 8. Bd3 {[%emt 0:00:02]} h6 {[%emt 0:00:49]} 9. O-O {[%emt 0:00:15]} O-O {[%emt 0:00:53]} 10. Re1 {[%emt 0:00:21]} Bg4 {[%emt 0:01:50]} 11. h3 {[%emt 0:00:02]} Bh5 {[%emt 0:00:45]} 12. g4 {[%emt 0:00:18]} Bg6 {[%emt 0:00:23]} 13. Ne5 {[%emt 0:00:01]} (13. Nh4 $11) 13... Bxd3 $15 {[%emt 0:06:57]} 14. Qxd3 {[%emt 0:00:12]} Nd7 {[%emt 0:01:44]} 15. f4 {[%emt 0:00:26]} Nxe5 {[%emt 0:03:40]} 16. dxe5 {[%emt 0:00:49]} f5 {[%emt 0:04:21]} 17. Ne2 {[%emt 0:05:04]} Qe8 {[%emt 0:03:36]} (17... b6 $15) 18. Nd4 $36 {[%emt 0:01:12][%mdl 2048] White is pushing.} Qg6 {[%emt 0:00:25][%cal Oa8e8] Against Ne6} 19. Kh2 {[%emt 0:02:09]} (19. Re2 $14) 19... Rae8 {[%emt 0:00:29]} 20. Qf3 {[%emt 0:02:46]} b6 {[%emt 0:00:30]} (20... fxg4 $5 21. Qxg4 Qxg4 22. hxg4 Ng6 $11) 21. b4 {[%emt 0:00:02]} Qf7 {[%emt 0:00:47]} (21... bxc5 $11 22. bxc5 Qf7 23. gxf5 Nxf5 24. Nxc6 g5) 22. Qg3 {[%emt 0:01:39]} bxc5 {[%emt 0:00:10]} 23. bxc5 {[%emt 0:00:02]} Kh8 $2 {[%emt 0:00:17]} (23... fxg4 $11 24. hxg4 h5) 24. Bd2 {[%emt 0:00:49]} (24. g5 $18) 24... Rb8 {[%emt 0:00:10] [#]} (24... g5 $1 $14) 25. Rg1 $2 {[%emt 0:01:15]} (25. g5 $1 $18) 25... fxg4 {[%emt 0:00:10]} 26. Qxg4 {[%emt 0:00:20] White wants to play Kh1.} Rb2 {[%emt 0:00:09][%csl LRd2,LRf4]} 27. Rg2 {[%emt 0:00:01]} Rxd2 {[%emt 0:00:11]} 28. Rxd2 {[%emt 0:00:02] Threatens to win with Re2.} Qxf4+ {[%emt 0:00:11]} 29. Qxf4 {[%emt 0:00:03]} Rxf4 {[%emt 0:00:02]} 30. Re1 $2 {[%emt 0:00:17]} (30. Kg2 $11 {and White stays safe.} Bxe5 31. Re1 Bxd4 32. Rxe7) 30... Ba5 $19 {[%emt 0:00:12]} 31. Ree2 {[%emt 0:00:02]} Bxd2 {[%emt 0:00:04]} 32. Rxd2 {[%emt 0:00:01][%mdl 4096] Endgame. KRN-KRN} Re4 {[%emt 0:00:13]} 33. e6 {[%emt 0:00:01]} g5 {[%emt 0:00:17]} 34. Kg2 {[%emt 0:00:12]} (34. Rf2 {only move.}) 34... Kg7 {[%emt 0:00:10]} 35. Rf2 {[%emt 0:00:35]} Rxd4 {[%emt 0:00:09] KRN-KR} (35... Kg6 $142 36. Nf3 Nf5 (36... Rxe6 $2 37. Rb2 $19)) 36. Rf7+ {[%emt 0:00:02]} Kg6 {[%emt 0:00:02]} 37. Rxe7 {[%emt 0:00:01] KR-KR} Kf6 {[%emt 0:00:20]} (37... Rd2+ $19 38. Kf3 Rxa2) 38. Rc7 {[%emt 0:00:14]} (38. Rxa7 $17 {was called for.} Kxe6 39. Rc7) 38... Kxe6 {[%emt 0:00:07]} ({Black should play} 38... Re4 $19 39. Rxa7 h5 (39... Kxe6 40. Rc7 $19) (39... Rxe6 40. Rd7 $17)) 39. Rxc6+ $15 {[%emt 0:00:01]} Kf5 {[%emt 0:00:09]} (39... Ke5 $15 40. Rxh6 Ra4) 40. Rxh6 $11 {[%emt 0:00:41]} Rd2+ {[%emt 0:00:08]} 41. Kg3 {[%emt 0:00:10]} (41. Kf3 $11 {keeps the balance.}) 41... Rxa2 $17 {[%emt 0:00:08]} 42. Rd6 {[%emt 0:00:03]} (42. c6 $17) 42... Ra3+ $19 {[%emt 0:00:05]} 43. Kg2 {[%emt 0:00:12]} Ke5 {[%emt 0:00:18]} (43... Ke4 $19 {is more deadly. Strongly threatening ...a5.} 44. Rg6 Ra2+ 45. Kf1 Ke3 46. Rxg5 Ra1+ 47. Kg2 d4 48. Re5+ Kd2 (48... Kf4 49. Rd5 $17)) 44. Rg6 $17 {[%emt 0:00:07]} Kf5 {[%emt 0:00:15]} 45. Rd6 {[%emt 0:00:01]} Ke5 {[%emt 0:00:10]} 46. Rg6 {[%emt 0:00:02] [#]} Kd4 $2 {[%emt 0:00:09]} (46... Kf4 $1 $19 {Hoping for ...Rg3+.} 47. Rd6 Rg3+ 48. Kf2 Rxh3 49. Rxd5 Rh2+ 50. Kf1 Rc2) 47. Rxg5 $11 {[%emt 0:00:30] The position is equal.} Kxc5 {[%emt 0:00:08]} 48. h4 {[%emt 0:00:01]} Ra4 {[%emt 0:00:13]} 49. Kg3 {[%emt 0:00:09]} Ra1 {[%emt 0:00:08] White must now prevent ...a5.} 50. h5 {[%emt 0:01:37]} Rh1 {[%emt 0:00:04]} 51. Kg2 {[%emt 0:00:30]} Rh4 {[%emt 0:00:09]} 52. Kg3 {[%emt 0:00:00]} Rh1 {[%emt 0:00:10]} 53. Kg2 {[%emt 0:00:01]} Rh4 {[%emt 0:00:11]} 54. Kg3 {[%emt 0:00:01]} Rh1 {[%emt 0:00:14] Black had all chances to win.   Weighted Error Value: White=0.41/Black=0.50.  Loses game:     	White=1     	Black=1      Missed win:     	---       	Black=1      Mistake:       	White=8     	Black=8      Inaccurate:     	White=4     	Black=2      OK:         	White=15    	Black=14     Best:        	White=6     	Black=6} 1/2-1/2

[Event "Tata Steel India Women Rapid 2024"]
[Site "Kolkata"]
[Date "2024.11.13"]
[Round "2.2"]
[White "Gunina, Valentina"]
[Black "Vaishali, Rameshbabu"]
[Result "1-0"]
[ECO "D91"]
[WhiteElo "2425"]
[BlackElo "2490"]
[Annotator "RC"]
[PlyCount "117"]
[EventDate "2024.11.06"]
[EventType "tourn"]
[EventCountry "IND"]
[SourceTitle "playchess.com"]
[Source "ChessBase"]
[SourceQuality "1"]
[TimeControl "1500+10"]

1. d4 {[%emt 0:00:03]} Nf6 {[%emt 0:00:03]} 2. c4 {[%emt 0:00:01]} g6 {[%emt 0:00:02]} 3. Nc3 {[%emt 0:00:02]} d5 {[%emt 0:00:02]} 4. Nf3 {[%emt 0:00:02]} Bg7 {[%emt 0:00:02]} 5. Bg5 {[%emt 0:00:02]} Ne4 {[%emt 0:00:19]} 6. Bf4 {[%emt 0:00:02]} O-O {[%emt 0:00:02]} 7. Nxd5 {[%emt 0:00:23]} c5 {[%emt 0:00:19]} 8. Bc7 {[%emt 0:00:13]} Qe8 {[%emt 0:00:31]} 9. Be5 {[%emt 0:00:03]} f6 {[%emt 0:03:19]} 10. Bxb8 {[%emt 0:00:11]} Rxb8 {[%emt 0:00:02]} 11. e3 {[%emt 0:00:08]} cxd4 {[%emt 0:01:17]} 12. Qxd4 {[%emt 0:00:13]} f5 {[%emt 0:01:44]} 13. Qxa7 {[%emt 0:00:03]} Be6 {[%emt 0:00:02]} 14. Qb6 {[%emt 0:02:31]} Bxd5 {[%emt 0:03:19]} 15. cxd5 {[%emt 0:00:03]} Qd8 {[%emt 0:00:02]} 16. Qxd8 {[%emt 0:01:03]} Rfxd8 {[%emt 0:00:03]} 17. Rb1 {[%emt 0:00:25]} b5 {[%emt 0:00:23]} 18. Bd3 {[%emt 0:00:24]} Nc5 {[%emt 0:00:31]} 19. Be2 {[%emt 0:01:26]} Rxd5 {[%emt 0:00:29]} 20. O-O {[%emt 0:00:07]} Bf6 {[%emt 0:02:05]} 21. Rfc1 {[%emt 0:02:25]} Kg7 {[%emt 0:00:20]} 22. Rc2 {[%emt 0:00:06]} b4 {[%emt 0:00:44]} 23. g3 {[%emt 0:00:45]} Ne4 {[%emt 0:02:01]} 24. Kg2 {[%emt 0:00:22]} Rd6 {[%emt 0:00:34]} 25. h4 {[%emt 0:01:53]} Ra8 {[%emt 0:02:21]} 26. Bc4 {[%emt 0:00:04]} Rc6 {[%emt 0:00:20]} 27. Rbc1 {[%emt 0:01:10]} Rd6 {[%emt 0:03:26]} 28. Bb3 {[%emt 0:00:35]} Rad8 {[%emt 0:00:03]} 29. Rc7 {[%emt 0:00:36]} R8d7 {[%emt 0:01:27]} 30. Rxd7 {[%emt 0:00:06]} Rxd7 {[%emt 0:00:01]} 31. Rc4 {[%emt 0:01:10]} Nd2 {[%emt 0:01:06]} 32. Rxb4 {[%emt 0:00:06]} Nxf3 {[%emt 0:00:03]} 33. Kxf3 {[%emt 0:00:02]} Rd2 {[%emt 0:00:06]} 34. Rb7 {[%emt 0:03:24]} Rxb2 {[%emt 0:00:02]} 35. Rc7 {[%emt 0:00:07]} Kf8 {[%emt 0:01:00]} 36. Be6 {[%emt 0:00:12]} Be5 {[%emt 0:00:23]} 37. Rc6 {[%emt 0:00:49]} Bd6 {[%emt 0:00:13]} 38. a4 {[%emt 0:00:22]} Rb1 {[%emt 0:01:54]} 39. a5 {[%emt 0:00:05]} Ra1 {[%emt 0:00:02]} 40. a6 {[%emt 0:00:01]} Kg7 {[%emt 0:00:01]} 41. Bc4 {[%emt 0:00:16]} Kf6 {[%emt 0:00:04]} 42. Ke2 {[%emt 0:00:15]} Ke5 {[%emt 0:00:29]} 43. f4+ {[%emt 0:00:27]} Kf6 {[%emt 0:00:41]} 44. Kd3 {[%emt 0:00:08]} h6 {[%emt 0:00:14]} 45. Rc8 {[%emt 0:00:11]} Ra3+ {[%emt 0:00:08]} 46. Kd4 {[%emt 0:00:44]} Bb4 {[%emt 0:00:14]} 47. Rf8+ {[%emt 0:01:41]} Kg7 {[%emt 0:00:01]} 48. Rf7+ {[%emt 0:00:36]} Kh8 {[%emt 0:00:02]} 49. h5 {[%emt 0:00:01]} gxh5 {[%emt 0:00:25]} 50. Rxf5 {[%emt 0:00:10]} Kg7 {[%emt 0:00:16]} 51. Rxh5 {[%emt 0:00:47]} Bd2 {[%emt 0:00:08]} 52. Rf5 {[%emt 0:00:37]} Bxe3+ {[%emt 0:00:06]} 53. Ke4 {[%emt 0:00:02]} Bb6 {[%emt 0:00:17]} 54. Rf7+ {[%emt 0:00:03]} Kg6 {[%emt 0:00:08]} 55. f5+ {[%emt 0:00:09]} Kh5 {[%emt 0:00:08]} 56. Rg7 {[%emt 0:00:01]} Re3+ {[%emt 0:00:11]} 57. Kf4 {[%emt 0:00:09]} e5+ {[%emt 0:00:13]} 58. fxe6 {[%emt 0:00:02]} Bc5 {[%emt 0:00:09]} 59. e7 {[%emt 0:00:13]} 1-0

[Event "Tata Steel India Women Rapid 2024"]
[Site "Kolkata"]
[Date "2024.11.13"]
[Round "2.3"]
[White "Dronavalli, Harika"]
[Black "Koneru, Humpy"]
[Result "1/2-1/2"]
[ECO "C70"]
[WhiteElo "2493"]
[BlackElo "2530"]
[Annotator "TA"]
[PlyCount "64"]
[EventDate "2024.11.06"]
[EventType "tourn"]
[EventCountry "IND"]
[SourceTitle "playchess.com"]
[Source "ChessBase"]
[SourceQuality "1"]
[TimeControl "1500+10"]

{[%evp 9,64,40,38,37,35,28,39,47,42,30,25,26,48,28,42,40,42,37,27,29,22,18,24,26,29,32,28,32,27,20,22,25,21,24,39,31,37,14,22,6,14,13,8,9,9,0,9,0,12,13,15,0,15,0,14,0,25]} 1. e4 {[%emt 0:00:03]} e5 {[%emt 0:00:02]} 2. Nf3 {[%emt 0:00:03]} Nc6 {[%emt 0:00:03]} 3. Bb5 {[%emt 0:00:03]} a6 {[%emt 0:00:05]} 4. Ba4 {[%emt 0:00:02]} Bc5 {[%emt 0:00:05]} 5. c3 {[%emt 0:00:07][%cal Bc2c3,Bc3d4][%mdl 32]} Nge7 {[%emt 0:00:10]} 6. d4 {[%emt 0:00:09]} exd4 {[%emt 0:00:06]} 7. cxd4 {[%emt 0:00:01]} Bb4+ {[%emt 0:00:08]} 8. Bd2 {[%emt 0:00:09] White is slightly better.} Bxd2+ {[%emt 0:00:12]} 9. Qxd2 {[%emt 0:00:03]} d5 {[%emt 0:00:15]} 10. exd5 {[%emt 0:00:06]} Qxd5 {[%emt 0:00:06]} 11. Nc3 {[%emt 0:00:02]} (11. O-O $5) 11... Qe6+ {[%emt 0:01:36]} 12. Qe3 {[%emt 0:00:03]} O-O {[%emt 0:01:42]} 13. O-O {[%emt 0:00:03]} Qd6 {[%emt 0:02:06]} 14. Rad1 {[%emt 0:00:36]} Nb4 {[%emt 0:02:14]} 15. Ne5 {[%emt 0:00:46][%cal Bf3e5,Be5c4,Bc4e3][%mdl 32]} Bf5 {[%emt 0:04:44]} 16. Qf3 {[%emt 0:05:31]} c6 {[%emt 0:00:49][%cal Bc7c6,Bc6d5][%mdl 32]} 17. Bb3 {[%emt 0:00:31]} Nbd5 {[%emt 0:00:15]} 18. Rfe1 {[%emt 0:00:58]} Rad8 {[%emt 0:00:37]} 19. Nc4 {[%emt 0:03:50]} Qc7 {[%emt 0:03:08]} 20. Nxd5 {[%emt 0:01:17]} cxd5 {[%emt 0:00:10]} 21. Ne3 {[%emt 0:00:03]} Be4 {[%emt 0:00:34]} 22. Qg3 {[%emt 0:00:28]} Qb6 {[%emt 0:01:31]} 23. f3 {[%emt 0:00:53]} Bg6 {[%emt 0:03:09] The position is equal.} 24. Qf2 {[%emt 0:03:01]} f6 {[%emt 0:00:20]} 25. Qd2 {[%emt 0:00:50]} Bf7 {[%emt 0:00:02]} 26. Rc1 {[%emt 0:01:13]} Rc8 {[%emt 0:00:02]} 27. Ba4 {[%emt 0:00:26]} Qd6 {[%emt 0:01:52]} (27... h5 $5) 28. a3 {[%emt 0:01:06]} Qf4 {[%emt 0:01:15]} 29. Rcd1 {[%emt 0:02:33]} Qd6 {[%emt 0:00:10]} 30. Rc1 {[%emt 0:00:23]} Qf4 {[%emt 0:00:02]} 31. Rcd1 {[%emt 0:00:01]} Qd6 {[%emt 0:00:02]} 32. Rc1 {[%emt 0:01:53]} Qf4 {[%emt 0:00:02] Weighted Error Value: White=0.05 (flawless) /Black=0.02 (flawless) .  OK:         	White=9     	Black=16} 1/2-1/2

[Event "Tata Steel India Women Rapid 2024"]
[Site "Kolkata"]
[Date "2024.11.13"]
[Round "2.4"]
[White "Dzagnidze, Nana"]
[Black "Goryachkina, Aleksandra"]
[Result "1/2-1/2"]
[ECO "D50"]
[WhiteElo "2518"]
[BlackElo "2528"]
[Annotator "TA"]
[PlyCount "81"]
[EventDate "2024.11.06"]
[EventType "tourn"]
[EventCountry "IND"]
[SourceTitle "playchess.com"]
[Source "ChessBase"]
[SourceQuality "1"]
[TimeControl "1500+10"]

{[%evp 9,80,13,25,29,41,38,40,0,9,0,52,46,45,54,50,41,35,48,28,20,68,56,60,62,52,53,72,65,74,56,51,10,15,24,41,48,39,43,44,49,39,20,14,16,10,13,2,0,21,-5,-2,-3,0,0,0,0,0,0,0,0,14,0,0,0,8,0,22,0,4,0,24,0,2]} 1. d4 {[%emt 0:00:04]} d5 {[%emt 0:00:02]} 2. c4 {[%emt 0:00:02]} e6 {[%emt 0:00:02]} 3. Nc3 {[%emt 0:00:05]} Nf6 {[%emt 0:00:02]} 4. Bg5 {[%emt 0:00:12]} dxc4 {[%emt 0:00:16]} 5. e3 {[%emt 0:00:06]} a6 {[%emt 0:00:18]} 6. Bxc4 {[%emt 0:00:56]} c5 {[%emt 0:00:07]} 7. Nf3 {[%emt 0:00:54]} b5 {[%emt 0:00:19]} 8. Be2 {[%emt 0:01:03] White is slightly better.} ({Wrong is} 8. Nxb5 $2 axb5 9. Bxb5+ Bd7 10. Bxd7+ Nbxd7 $19 (10... Qxd7 11. O-O $17)) 8... Bb7 {[%emt 0:00:50]} 9. O-O {[%emt 0:00:24]} cxd4 {[%emt 0:00:47]} (9... Nbd7 $11) 10. Nxd4 $14 {[%emt 0:00:37] Bf3 is the strong threat.} Be7 {[%emt 0:03:41]} 11. Bf3 {[%emt 0:00:37]} Ra7 {[%emt 0:00:19]} 12. Bxb7 {[%emt 0:03:00]} Rxb7 {[%emt 0:00:01]} 13. Qf3 {[%emt 0:00:02]} Rd7 {[%emt 0:00:45]} 14. a4 {[%emt 0:04:06]} b4 {[%emt 0:03:44]} (14... h6 $11 15. Bxf6 Bxf6) 15. Ne4 {[%emt 0:00:05]} Nxe4 {[%emt 0:01:00]} 16. Bxe7 {[%emt 0:00:02]} Qxe7 {[%emt 0:00:16]} 17. Qxe4 {[%emt 0:00:08]} O-O {[%emt 0:00:16]} 18. Rac1 {[%emt 0:01:10]} Rfd8 {[%emt 0:02:01]} 19. Rc4 {[%emt 0:01:39] White is more active.} Rc7 {[%emt 0:01:16]} 20. Nb3 {[%emt 0:04:33]} Rxc4 {[%emt 0:01:16]} 21. Qxc4 {[%emt 0:00:02]} Qd6 {[%emt 0:01:16]} 22. h3 {[%emt 0:00:11]} h6 {[%emt 0:01:33]} 23. Rc1 {[%emt 0:00:18]} Nd7 {[%emt 0:00:21][%cal Bb8d7,Bd7e5,Be5d3][%mdl 32]} 24. Nd4 {[%emt 0:04:32]} Ne5 {[%emt 0:00:15] Repels Nc6} 25. Qc7 {[%emt 0:00:51]} Nd3 {[%emt 0:02:03][%csl LRb2,LRc1]} 26. Qxd6 {[%emt 0:00:31]} Rxd6 $11 {[%emt 0:00:01][%mdl 4096] Endgame. KRN-KRN} 27. Rc8+ {[%emt 0:00:08]} Kh7 {[%emt 0:00:02]} 28. b3 {[%emt 0:00:08]} e5 {[%emt 0:01:55]} 29. Nf3 {[%emt 0:00:34]} Rd5 {[%emt 0:01:01]} 30. Kf1 {[%emt 0:01:43]} Nc5 {[%emt 0:00:53]} 31. Rb8 {[%emt 0:00:49]} Nxb3 {[%emt 0:00:32] [#] Strongly threatening ...a5.} 32. Rxb4 {[%emt 0:00:08]} Nc1 {[%emt 0:00:08] Hoping for ...Rd1+.} 33. g4 {[%emt 0:00:36]} g6 {[%emt 0:01:18]} 34. Rc4 {[%emt 0:00:17]} Nb3 {[%emt 0:00:14]} 35. Rc6 {[%emt 0:00:09]} Ra5 {[%emt 0:00:26]} 36. Rc4 {[%emt 0:00:09]} Kg7 {[%emt 0:00:14]} 37. Ke2 {[%emt 0:00:05]} Kf6 {[%emt 0:00:31]} 38. Rc6+ {[%emt 0:00:01]} Kg7 {[%emt 0:00:21]} 39. Rc4 {[%emt 0:00:02]} Kf6 {[%emt 0:00:01]} 40. Rc6+ {[%emt 0:00:02]} Kg7 {[%emt 0:00:01]} 41. Rc4 {[%emt 0:00:02] Weighted Error Value: White=0.09 (flawless) /Black=0.08 (flawless) .  Mistake:       	---       	Black=2      Inaccurate:     	White=3     	---        OK:         	White=12    	Black=15     Best:        	White=2     	Black=4} 1/2-1/2